Cogmind - Beta 13 @@@ ROGUE MODE // 2024.05.08 @ 11:31:18 Player: Some Pennies Result: Destroyed by S-27 Virus with Autogun Performance ------------- Evolutions (3) 1500 Regions Visited (9) 1800 Robots Destroyed (178) 890 Value Destroyed (5551) 5551 Prototype IDs (33) 660 Alien Tech Used (0) 0 Bonus (1689) 1689 TOTAL SCORE: 12090 Bonus ------- High Alert Combat Kills 619 Follower Combat Kills 70 Entered Garrisons 200 Used RIF Installer 500 Aligned with FarCom 300 Cogmind --------- Core Integrity 0/700 Matter 31/300 Energy 100/100 System Corruption 0% Temperature Cool (0) Movement Core (1400) Ox27 Location -7/Factory Parts ------- > --- POWER (1) -------- (None) > --- PROPULSION (5) --- (None) > --- UTILITY (5) ------ Huge Storage Unit Relay Coupler [NC] (20) > --- WEAPON (2) ------- Mini Assault Cannon > --- INVENTORY (25) --- Improved Flight Unit Improved Flight Unit Improved Flight Unit Improved Flight Unit Improved Flight Unit Improved Cooling System Improved Coolant Injector Launcher Guidance Computer Recoil Nullifier Improved Weapon Cycler Advanced Shield Generator Relay Coupler [Demolisher] (23) Relay Coupler [Specialist] (23) Relay Coupler [Hunter] (22) Relay Coupler [Heavy] (17) Recalibrator Heavy Phase Cannon Heavy Phase Cannon Smartbomb Launcher Improved Remote Datajack Improved Plasma Cutter Axe Peak State ------------ > --- POWER ------------ Light Angular Momentum Engine > --- PROPULSION ------- Medium Treads Medium Treads Medium Treads Improved Medium Treads Improved Medium Treads > --- UTILITY ---------- Improved Cooling System Huge Storage Unit Light Armor Plating Hacking Suite System Shield > --- WEAPON ----------- Tesla Rifle Magnetic Acceleration Cannon > --- INVENTORY -------- Improved Flight Unit Improved Flight Unit Improved Flight Unit Improved Flight Unit Improved Flight Unit Improved Coolant Injector Launcher Guidance Computer Recoil Nullifier Improved Weapon Cycler Advanced Shield Generator Relay Coupler [NC] Relay Coupler [Demolisher] Relay Coupler [Specialist] Relay Coupler [Hunter] Relay Coupler [Heavy] Recalibrator Heavy Phase Cannon Heavy Phase Cannon Hypervelocity Gauss Cannon Smartbomb Launcher Improved Remote Datajack Improved Plasma Cutter Axe [Rating: 61] Favorites ----------- Power Light Nuclear Core Engine Cooled Ion Engine Power Core Light Nuclear Core Propulsion Armored Treads Treads Armored Treads Leg Carbon-fiber Leg Flight Unit Improved Flight Unit Utility Huge Storage Unit Device Improved Heat Sink Storage Huge Storage Unit Hackware Hacking Suite Protection Light Armor Plating Weapon Minigun Energy Gun EM Pulse Gun Energy Cannon Advanced Beam Cannon Ballistic Gun Minigun Ballistic Cannon Light Cannon Launcher Rocket Launcher Special Weapon Improved Remote Datajack Slashing Weapon Axe Special Melee Weapon Datajack Build | -11 -10 -10 -9 -9 -9 -8 -8 -8 -7 ------- Run | Yrd Mat Min Mat Min Exi Min Mat Gar Fac Slots Evolved 6 | . . . 2 . . . 2 . 2 Power . | . . . . . . . . . . Propulsion 3 | . . . 1 . . . 2 . . Utility 3 | . . . 1 . . . . . 2 Weapon . | . . . . . . . . . . Parts Attached 178 | 7 11 10 53 6 . 7 35 38 11 Power 19 | 1 1 1 6 1 . 3 3 3 . Engine 13 | 1 . 1 4 1 . 1 2 3 . Core 6 | . 1 . 2 . . 2 1 . . Reactor . | . . . . . . . . . . Propulsion 51 | 2 2 4 16 2 . 2 15 7 1 Treads 48 | 2 2 2 15 2 . 2 15 7 1 Leg 2 | . . 2 . . . . . . . Wheel . | . . . . . . . . . . Hover . | . . . . . . . . . . Flight 1 | . . . 1 . . . . . . Utility 38 | 2 3 . 14 1 . . 7 7 4 Device 16 | 1 1 . 9 1 . . . 3 1 Storage 2 | 1 1 . . . . . . . . Processor . | . . . . . . . . . . Hackware 4 | . 1 . . . . . . 1 2 Protection 16 | . . . 5 . . . 7 3 1 Artifact . | . . . . . . . . . . Weapon 70 | 2 5 5 17 2 . 2 10 21 6 Energy Gun 16 | 2 1 . 3 . . . 2 6 2 Energy Cannon 4 | . . . 3 . . . . 1 . Ballistic Gun 20 | . 2 2 4 2 . 1 6 3 . Ballistic Cannon 11 | . . 2 4 . . . . 2 3 Launcher 2 | . . . . . . 1 1 . . Special Weapon 7 | . 1 . 1 . . . . 4 1 Impact Weapon . | . . . . . . . . . . Slashing Weapon 6 | . . . . . . . 1 5 . Piercing Weapon . | . . . . . . . . . . Special Melee Weapon 4 | . 1 1 2 . . . . . . Unidentified Prototypes 9 | . . . 5 . . . 3 . 1 Parts Lost 25 | . . . 1 1 . 1 5 5 12 Power 1 | . . . . . . . . . 1 Propulsion 11 | . . . . . . 1 2 3 5 Utility 4 | . . . . . . . 1 . 3 Weapon 9 | . . . 1 1 . . 2 2 3 Highest Loss Streak 11 | . . . 1 1 . 1 2 5 11 To Critical Strikes 1 | . . . . . . . . . 1 Average Slot Usage (%) 98 | . 99 98 99 99 100 99 98 98 87 Engine 7 | . 5 5 8 11 11 1 7 9 6 Core 3 | . 8 7 2 . . 9 1 . . Treads 33 | . 27 16 32 32 33 32 44 44 32 Leg 1 | . . 10 . . . . . . . Device 4 | . 3 . 8 11 11 11 . 3 4 Storage 11 | . 14 14 11 11 11 11 9 9 7 Hackware 10 | . 10 14 11 11 11 11 9 8 18 Protection 2 | . . . 2 . . . 7 6 3 Energy Gun 3 | . 18 . . . . . . 5 3 Energy Cannon 2 | . . . 10 4 . . . . . Ballistic Gun 12 | . 8 18 6 17 22 21 17 6 . Ballistic Cannon 2 | . . 6 4 . . . . 3 8 Naked Turns . | . . . . . . . . . . Heaviest Build 109 | 15 90 91 99 96 95 96 105 109 109 Greatest Support 144 | 40 40 40 69 62 62 64 106 144 144 Greatest Overweight (x) 31 | . 4 28 4 2 1 1 1 1 31 Average Overweight (x) . | . 2 2 1 1 1 1 . . . Largest Inventory Capacity 25 | 8 25 25 25 25 25 25 25 25 25 Average Capacity 24 | 7 24 25 25 25 25 25 25 25 25 Most Carried 25 | 5 21 25 25 25 25 25 25 25 25 Average Carried 22 | 1 12 22 24 24 24 24 24 24 24 Final Capacity 25 | 8 25 25 25 25 25 25 25 25 25 Final Carried 25 | 2 20 23 25 24 25 25 25 25 23 Class Distribution -------------------- 79% | Mutant 15% | Scavenger-Mutant 5% | Bothacker-Mutant Dominant Class ---------------- Mutant | -10/Materials Mutant | -10/Mines Mutant | -9/Materials Mutant | -9/Mines Mutant | -9/Exiles Mutant | -8/Mines Mutant | -8/Materials Scavenger-Mutant | -8/Garrison Bothacker-Mutant | -7/Factory Resources | -11 -10 -10 -9 -9 -9 -8 -8 -8 -7 ----------- Run | Yrd Mat Min Mat Min Exi Min Mat Gar Fac Matter Collected 4434 | 270 127 117 925 445 . 277 1344 770 159 Remotely . | . . . . . . . . . . Salvage Created 6725 | 140 765 209 1293 614 . 302 2052 1055 295 Parts 415 | 7 53 19 81 30 . 12 134 62 17 Haulers Intercepted 13 | . 2 . 4 . . . 6 . 1 Recyclers Shooed 8 | . 5 . 2 . . . . . 1 Parts Field Recycled . | . . . . . . . . . . Retrieved Matter . | . . . . . . . . . . Parts Self-Destructed . | . . . . . . . . . . Prevented . | . . . . . . . . . . Kills | -11 -10 -10 -9 -9 -9 -8 -8 -8 -7 ------- Run | Yrd Mat Min Mat Min Exi Min Mat Gar Fac Combat Hostiles Destroyed 130 | . 12 8 26 16 . 7 34 22 5 Guns 88 | . 12 8 3 11 . 5 31 18 . Cannons 34 | . . . 21 5 . . . 4 4 AOE 5 | . . . . . . 2 3 . . Classes Destroyed 16 | 2 6 1 1 2 . . . 3 1 Worker 10 | . 1 . 2 1 . 1 5 . . Builder 2 | . . 1 . . . . 1 . . Tunneler 5 | 3 1 . . . . . 1 . . Hauler 13 | . 2 . 4 . . . 6 . 1 Recycler 10 | 1 2 . . 3 . . 3 . 1 Operator 7 | . 1 . 2 . . . 4 . . Watcher 10 | . 3 . 3 . . . 4 . . Swarmer 32 | . 6 6 4 . . . 12 3 1 Grunt 61 | . 6 2 14 5 . 7 16 10 1 Brawler 1 | . . . . . . . . 1 . Sentry 17 | . . . 8 . . . 6 3 . Demolisher 2 | . . . . 2 . . . . . Hunter 2 | . . . . . . . . . 2 Programmer 5 | . . . . . . . . 4 1 Behemoth 1 | . . . . . . . . 1 . Assembled 9 | . . . . 9 . . . . . Best Kill Streak 8 | 2 4 4 8 4 . 4 6 6 3 Combat Bots Only 8 | . 4 3 8 4 . 3 6 6 2 Max Kills in Single Turn 4 | 1 1 2 1 2 . 2 4 1 1 Gunslinging 1 | . . 1 . 1 . . . . . Exploded 3 | . . . . . . 2 3 . . Melee . | . . . . . . . . . . Uniques/NPCs Destroyed . | . . . . . . . . . . Combat | -11 -10 -10 -9 -9 -9 -8 -8 -8 -7 -------- Run | Yrd Mat Min Mat Min Exi Min Mat Gar Fac Hostile Shots Fired 914 | . 57 35 140 95 . 41 127 219 200 Missed 237 | . 14 12 34 26 . 13 37 55 46 Damage Taken 9802 | . 460 228 1345 1410 . 489 1508 2101 2261 Core 1626 | . 92 60 118 139 . 73 179 250 715 Absorbed by Shields . | . . . . . . . . . . Regen/Repaired (Parts) 495 | . 162 . 192 . . . . . 141 Core Remaining (%) 44 | 100 . 39 . . . 17 . 22 . Volleys Fired 525 | 8 68 15 97 75 . 25 122 82 33 Largest 2 | 2 2 2 2 2 . 2 2 2 2 Hottest 120 | 90 100 40 103 91 . 50 58 120 118 Shots Fired 998 | 16 131 30 175 149 . 46 244 143 64 Gun 729 | 16 128 30 35 110 . 42 240 117 11 Cannon 248 | . . . 139 39 . . . 18 52 Launcher 8 | . . . . . . 4 4 . . Special 13 | . 3 . 1 . . . . 8 1 Kinetic 678 | . 17 30 93 110 . 42 240 94 52 Thermal 200 | 8 51 . 82 39 . . . 20 . Explosive 8 | . . . . . . 4 4 . . Electromagnetic 111 | 8 63 . . . . . . 29 11 Robot Hit Streak 24 | 9 15 9 11 12 . 7 24 17 5 Robot Miss Streak 11 | 2 5 2 3 4 . 2 3 2 11 Penetration Max 1 | . . . . . . . . . 1 Secondary Targets 14 | . 1 4 . 3 . . 3 3 . Max Gunslinging Chain 1 | . 1 1 . 1 . . 1 1 . Shots Hit Robots 652 | 11 75 22 113 84 . 33 181 105 28 Core Hits 277 | 5 34 13 40 35 . 19 84 39 8 Critical Kills 8 | . . . 2 . . . 1 1 4 Critical Parts Destroyed 8 | . 1 . 1 . . . . . 6 Critical Strikes 25 | . 3 . 6 . . . 1 3 12 Burn 2 | . 2 . . . . . . . . Meltdown 2 | . . . 2 . . . . . . Destroy 14 | . 1 . 1 . . . 1 1 10 Blast 6 | . . . 3 . . . . 1 2 Corrupt 1 | . . . . . . . . 1 . Melee Attacks 12 | . . . 1 . . . 1 10 . Impact . | . . . . . . . . . . Slashing 11 | . . . . . . . 1 10 . Piercing . | . . . . . . . . . . Sneak Attacks 1 | . . . 1 . . . . . . Combat Hostiles . | . . . . . . . . . . Follow-up Attacks . | . . . . . . . . . . Damage Inflicted 13486 | 144 1188 249 2212 1533 . 947 3809 2660 744 Guns 8946 | 144 1059 249 347 1026 . 562 3582 1799 178 Cannons 3649 | . . . 1865 507 . . . 711 566 Explosions 891 | . 129 . . . . 385 227 150 . Melee . | . . . . . . . . . . Ramming . | . . . . . . . . . . Kinetic 8536 | . 55 249 882 1026 . 562 3582 1614 566 Thermal 2988 | 49 458 . 1330 507 . . . 644 . Explosive 612 | . . . . . . 385 227 . . Electromagnetic 1350 | 95 675 . . . . . . 402 178 Impact . | . . . . . . . . . . Slashing . | . . . . . . . . . . Piercing . | . . . . . . . . . . Highest Corruption 7 | . . . . . . . . 7 . Average Corruption 3 | . . . . . . . . 3 . Corruption Purged . | . . . . . . . . . . Corruption Blocked . | . . . . . . . . . . Effects 16 | . . . . . . . . 16 . Message Errors 2 | . . . . . . . . 2 . Matter Fused 5 | . . . . . . . . 5 . Heat Flow Errors 2 | . . . . . . . . 2 . Energy Discharges 3 | . . . . . . . . 3 . Parts Fused 1 | . . . . . . . . 1 . Data Loss (minor) 3 | . . . . . . . . 3 . Overload Shots . | . . . . . . . . . . Overflow Damage 30 | . . . 8 17 . . 2 2 1 Projectiles 28 | . . . 8 17 . . . 2 1 Explosions 2 | . . . . . . . 2 . . Melee . | . . . . . . . . . . Knockbacks 8 | . . . 6 . . . . . 2 Impact . | . . . . . . . . . . Kinetic 8 | . . . 6 . . . . . 2 Secondary . | . . . . . . . . . . Self-Inflicted Damage 93 | . 21 . . . . 47 . 25 . Shots 3 | . 1 . . . . 1 . 1 . Rammed . | . . . . . . . . . . Targets Rammed . | . . . . . . . . . . Kicked . | . . . . . . . . . . Crushed . | . . . . . . . . . . Highest Temperature 639 | 90 372 23 342 18 . 17 73 639 329 Average Temperature 89 | 35 106 7 95 8 . 12 13 130 165 Received Heat Transfer 3624 | . 168 66 504 228 . 324 672 1005 657 Effects 17 | . 2 . 5 . . . . 9 1 Shutdowns 2 | . . . . . . . . 2 . Energy Bleed 3 | . 1 . 1 . . . . 1 . Interference 6 | . 1 . 3 . . . . 2 . Short Circuit 3 | . . . . . . . . 2 1 Damage (minor) 3 | . . . 1 . . . . 2 . Siege Activations . | . . . . . . . . . . Robots Corrupted 1 | . . . . . . . . . 1 Combat Hostiles 1 | . . . . . . . . . 1 Parts Fried 5 | 1 3 . . . . . . . 1 Impact Corruptions . | . . . . . . . . . . Robots Melted 2 | . . . 2 . . . . . . Combat Hostiles 2 | . . . 2 . . . . . . Parts Melted 5 | . 1 . 4 . . . . . . Heat Transferred 5736 | 148 1310 . 2294 851 . . . 1133 . Parts Sabotaged . | . . . . . . . . . . Parts Stolen . | . . . . . . . . . . Parts Stripped . | . . . . . . . . . . Power Chain Reactions 3 | . 2 . . . . . . 1 . Alert | -11 -10 -10 -9 -9 -9 -8 -8 -8 -7 ------- Run | Yrd Mat Min Mat Min Exi Min Mat Gar Fac Peak Influence 1261 | 20 245 75 625 277 . 154 649 1261 676 Initial 661 | . 13 . . 122 . . 27 405 661 Average 278 | 8 39 26 288 83 . 62 369 855 594 Maximum Alert Level 4 | . 1 . 2 1 . . 2 4 2 Low Security (%) 53 | 100 96 100 28 84 . 100 30 . . Level 1 16 | . 3 . 47 15 . . 18 . . Level 2 22 | . . . 24 . . . 50 28 100 Level 3 6 | . . . . . . . . 52 . Level 4 2 | . . . . . . . . 19 . Level 5 . | . . . . . . . . . . High Security . | . . . . . . . . . . Max Security . | . . . . . . . . . . Squads Dispatched 11 | . 2 . 2 . . . 4 . 3 Investigation 2 | . 1 . . . . . . . 1 Extermination 1 | . . . . . . . . . 1 Reinforcement 8 | . 1 . 2 . . . 4 . 1 Assault . | . . . . . . . . . . Garrison . | . . . . . . . . . . Intercept . | . . . . . . . . . . Searches Triggered . | . . . . . . . . . . Construction Impeded 1 | . . . . . . . . . 1 Haulers Reinforced . | . . . . . . . . . . Active Scanning Responses . | . . . . . . . . . . Cargo Convoy Interrupts . | . . . . . . . . . . Stealth | -11 -10 -10 -9 -9 -9 -8 -8 -8 -7 --------- Run | Yrd Mat Min Mat Min Exi Min Mat Gar Fac Distress Signals 14 | . 4 . 4 1 . . 5 . . Communications Jammed . | . . . . . . . . . . Distress Signals . | . . . . . . . . . . Times Spotted 214 | . 31 8 54 20 . 9 58 22 12 Peak Tracking Total 7 | . 5 3 7 3 . 3 5 4 4 Tactical Retreats 10 | . . . 2 4 . . 3 . 1 Traps | -11 -10 -10 -9 -9 -9 -8 -8 -8 -7 ------- Run | Yrd Mat Min Mat Min Exi Min Mat Gar Fac Traps Triggered 4 | . . 2 . . . . . 2 . Indirectly . | . . . . . . . . . . Trap Hack Attempts 25 | . . 11 14 . . . . . . Triggered . | . . . . . . . . . . Disarmed 3 | . . . . . . . 3 . . Reprogrammed 8 | . . 2 6 . . . . . . Reused . | . . . . . . . . . . Traps Extracted 4 | . . . 4 . . . . . . Installed . | . . . . . . . . . . Triggered . | . . . . . . . . . . Most Traps Carried 4 | . . . 4 4 4 4 4 4 . Machines | -11 -10 -10 -9 -9 -9 -8 -8 -8 -7 ---------- Run | Yrd Mat Min Mat Min Exi Min Mat Gar Fac Machines Disabled 16 | . . . 5 . . 1 7 3 . Max in Single Turn 1 | . . . 1 . . 1 1 1 . Garrison Relay 3 | . . . . . . . . 3 . Machines Repaired . | . . . . . . . . . . Machines Dismantled . | . . . . . . . . . . Machines Sabotaged . | . . . . . . . . . . Overloaded Fab Kills . | . . . . . . . . . . Hacking | -11 -10 -10 -9 -9 -9 -8 -8 -8 -7 --------- Run | Yrd Mat Min Mat Min Exi Min Mat Gar Fac Machines Accessed 41 | . 7 1 15 1 1 . 10 3 3 Terminals 26 | . 6 . 9 . . . 7 3 1 Fabricators . | . . . . . . . . . . Repair Stations 4 | . 1 . 2 . . . . . 1 Recycling Units 5 | . . . 2 . . . 2 . 1 Scanalyzers 2 | . . . 2 . . . . . . Garrison Access 1 | . . . . . . . 1 . . Total Hacks 108 | . 24 1 45 1 1 . 24 3 9 Successful 65 | . 15 1 27 1 1 . 12 3 5 Failed 43 | . 9 . 18 . . . 12 . 4 Catastrophic 6 | . . . 4 . . . 1 . 1 Database Lockouts . | . . . . . . . . . . Manual 50 | . 16 . 18 . 1 . 12 . 3 Terminals 74 | . 19 . 32 . . . 17 3 3 Fabricators . | . . . . . . . . . . Repair Stations 12 | . 5 . 4 . . . . . 3 Recycling Units 14 | . . . 5 . . . 6 . 3 Scanalyzers 4 | . . . 4 . . . . . . Garrison Access 1 | . . . . . . . 1 . . Terminal Hacks 42 | . 11 1 15 1 1 . 9 3 1 Record 1 | . . . . . . . . . 1 Part Schematic 1 | . 1 . . . . . . . . Robot Analysis 10 | . 7 . 2 . . . 1 . . Prototype ID Bank 1 | . . . . . . . 1 . . Open Door 2 | . . 1 . 1 . . . . . Level Access Points 1 | . . . . . . . 1 . . Emergency Access Points 1 | . . . . . . . . 1 . Terminal Index 1 | . . . 1 . . . . . . Recycling Unit Index 1 | . . . 1 . . . . . . Unreport Threat 4 | . 1 . 2 . . . 1 . . Locate Traps 6 | . 1 . 3 . . . 2 . . Disarm Traps 1 | . . . . . . . 1 . . Recall Investigation 1 | . . . 1 . . . . . . Registered Components 1 | . . . 1 . . . . . . Registered Prototypes 1 | . . . 1 . . . . . . Zone Layout 6 | . 1 . 3 . . . 2 . . Garrison Registry 1 | . . . . . . . . 1 . Security Stations 1 | . . . . . . . . 1 . Derelict Proto ID Bank 1 | . . . . . 1 . . . . Fabricator Hacks . | . . . . . . . . . . Repair Station Hacks 10 | . 4 . 4 . . . . . 2 Scan Component 5 | . 2 . 2 . . . . . 1 Repair 5 | . 2 . 2 . . . . . 1 Recycling Unit Hacks . | . . . . . . . . . . Scanalyzer 4 | . . . 4 . . . . . . Insert Component 2 | . . . 2 . . . . . . Analyze 2 | . . . 2 . . . . . . Garrison Access Hacks 1 | . . . . . . . 1 . . Unlock Access 1 | . . . . . . . 1 . . Unauthorized Hacks 8 | . . . 4 . . . 2 . 2 Terminals . | . . . . . . . . . . Fabricators . | . . . . . . . . . . Repair Stations . | . . . . . . . . . . Recycling Units 8 | . . . 4 . . . 2 . 2 Monitor 3 | . . . 2 . . . . . 1 Mask 5 | . . . 2 . . . 2 . 1 Scanalyzers . | . . . . . . . . . . Garrison Access . | . . . . . . . . . . Data Cores Recovered . | . . . . . . . . . . Used . | . . . . . . . . . . Hacking Detections 28 | . 7 . 11 . . . 7 1 2 Full Trace Events 3 | . 1 . 1 . . . . . 1 Feedback Events . | . . . . . . . . . . Feedback Blocked . | . . . . . . . . . . Robot Schematics Acquired . | . . . . . . . . . . Robots Built . | . . . . . . . . . . Authchips . | . . . . . . . . . . Time . | . . . . . . . . . . Total Robot Build Rating . | . . . . . . . . . . Part Schematics Acquired 3 | . 1 . 2 . . . . . . Parts Built . | . . . . . . . . . . Authchips . | . . . . . . . . . . Time . | . . . . . . . . . . Total Part Build Rating . | . . . . . . . . . . Parts Repaired 5 | . 2 . 2 . . . . . 1 Time 166 | . 52 . 89 . . . . . 25 Parts Recycled . | . . . . . . . . . . Recycled Matter . | . . . . . . . . . . Retrieved Matter . | . . . . . . . . . . Retrieved Components . | . . . . . . . . . . Parts Scanalyzed 2 | . . . 2 . . . . . . Part Schematics Acquired 2 | . . . 2 . . . . . . Parts Damaged . | . . . . . . . . . . Bothacking | -11 -10 -10 -9 -9 -9 -8 -8 -8 -7 ------------ Run | Yrd Mat Min Mat Min Exi Min Mat Gar Fac Used RIF Installer 1 | . . . . . . . . 1 . Robots Hacked 1 | . . . . . . . . . 1 Non-combat 1 | . . . . . . . . . 1 Combat . | . . . . . . . . . . Robot Hacks Applied 1 | . . . . . . . . . 1 formatsys_low 1 | . . . . . . . . . 1 Relay Couplers Released 16 | . . . . . . . . 16 . Machine Destruction 13 | . . . . . . . . 13 . Programmers 3 | . . . . . . . . 3 . Attached 1 | . . . . . . . . . 1 Fabnet Peak Effective % . | . . . . . . . . . . Robots Rewired . | . . . . . . . . . . Allies Hacked . | . . . . . . . . . . Hacks Repelled . | . . . . . . . . . . Allies | -11 -10 -10 -9 -9 -9 -8 -8 -8 -7 -------- Run | Yrd Mat Min Mat Min Exi Min Mat Gar Fac Total Allies 6 | . . . . 5 . . . . 1 Largest Group 3 | . . . . 3 3 3 . . 1 Highest-Rated Group 45 | . . . . 45 40 40 . . 10 Highest-Rated Ally 31 | . . . . 31 16 16 . . 10 Total Orders . | . . . . . . . . . . Ally Attacks 23 | . . . . 4 . 19 . . . Total Damage 192 | . . . . 41 . 151 . . . Kills 2 | . . . . . . 2 . . . Allies Corrupted . | . . . . . . . . . . Allies Melted . | . . . . . . . . . . Intel | -11 -10 -10 -9 -9 -9 -8 -8 -8 -7 ------- Run | Yrd Mat Min Mat Min Exi Min Mat Gar Fac Robot Analysis Total 10 | . 7 . 2 . . . 1 . . Derelict Logs Recovered 2 | . . 1 . 1 . . . . . Drone Launches . | . . . . . . . . . . Drone Recoveries . | . . . . . . . . . . Exploration | -11 -10 -10 -9 -9 -9 -8 -8 -8 -7 ------------- Run | Yrd Mat Min Mat Min Exi Min Mat Gar Fac Turns Passed 18142 | 116 3136 2258 3983 1334 816 626 3097 2057 719 Spaces Moved 6841 | 58 894 681 1402 453 339 225 1440 1042 307 Core 22 | 14 . 3 . . . . . . 5 Treads 6540 | 44 894 399 1402 453 339 225 1440 1042 302 Legs 279 | . . 279 . . . . . . . Wheels . | . . . . . . . . . . Hover . | . . . . . . . . . . Flight . | . . . . . . . . . . Fastest Speed 50 | 50 160 260 238 241 241 233 155 155 160 Average Speed 227 | 133 320 316 245 244 241 238 162 161 183 Slowest Speed 1600 | 160 480 1450 490 330 241 241 243 236 1600 Overloaded Moves . | . . . . . . . . . . Propulsion Burnouts . | . . . . . . . . . . Robots Hopped . | . . . . . . . . . . Cave-ins Triggered . | . . . . . . . . . . Exploration Rate (%) 67 | 3 97 99 95 77 76 40 87 88 8 Regions Visited 9 Branch Regions 4 Pre-discovered Areas 2 | . . 1 . 1 . . . . . Known Exits Taken 1 | . . . . . . . 1 . . Unknown Exits Taken 7 | 1 1 1 1 1 1 1 . . . Scrap Searched 3 | . . 1 . 1 . 1 . . . Spaces Dug 12 | . 3 . 1 . . 7 1 . . Terrain Destroyed 77 | . 6 . 1 . . 22 37 . 11 Melee 1 | . . . . . . . 1 . . Projectile 15 | . 3 . 1 . . . . . 11 AOE 61 | . 3 . . . . 22 36 . . Terrain Rammed . | . . . . . . . . . . Walls Destroyed . | . . . . . . . . . . Machines Disabled . | . . . . . . . . . . Actions | -11 -10 -10 -9 -9 -9 -8 -8 -8 -7 --------- Run | Yrd Mat Min Mat Min Exi Min Mat Gar Fac Total 8428 | 80 1034 759 1779 544 339 279 1967 1246 401 Wait 580 | . 32 21 116 . . 14 327 25 45 Move 6833 | 57 893 680 1401 452 338 224 1440 1041 307 Hop . | . . . . . . . . . . Pick Up 140 | 8 25 13 43 5 1 3 13 26 3 Fast Attach 26 | 1 . 1 8 . . 3 11 1 1 Attach 40 | 6 2 5 4 3 . 1 6 7 6 Detach 6 | . . 1 . . . . 2 2 1 Swap 113 | . 9 4 41 3 . 3 19 30 4 Drop 128 | . 5 8 54 6 . 6 26 22 1 Fire 525 | 8 68 15 97 75 . 25 122 82 33 Melee 12 | . . . 1 . . . 1 10 . Ram . | . . . . . . . . . . Kick . | . . . . . . . . . . Crush . | . . . . . . . . . . Escape Stasis . | . . . . . . . . . . Rewire . | . . . . . . . . . . Trap 25 | . . 11 14 . . . . . . Miscellaneous . | . . . . . . . . . . Route ------- -11/Scrapyard -10/Materials (discovered 5 exits: *Mat x3 / *Min x2) -10/Mines (discovered 3 exits: *Mat x2 / [*Sub]) -9/Materials (discovered 5 exits: *Mat x3 / *Min x2) -9/Mines (discovered 2 exits: *Mat / *Exi) -9/Exiles -8/Mines -8/Materials (discovered 4 exits: *Fac x3 / Gar) -8/Garrison (discovered 4 exits: *Fac x3 / [Mat]) -7/Factory History --------- Turn | Location | Event 9 | -11/Scrapyard | Discovered new exit (range 16) 117 | -11/Scrapyard | Entered Materials 317 | -10/Materials | Build established: Mutant 351 | -10/Materials | Discovered new exit (range 9) 463 | -10/Materials | Discovered new exit (range 15) 932 | -10/Materials | Repaired Lgt. Treads 960 | -10/Materials | Repaired Lgt. Treads 1319 | -10/Materials | Discovered new exit (range 16) 1498 | -10/Materials | Discovered new exit (range 13) 3019 | -10/Materials | Discovered new exit (range 10) 3253 | -10/Materials | Entered Mines 3460 | -10/Mines | Discovered new exit (range 5) 3931 | -10/Mines | Discovered new exit (range 8) 3966 | -10/Mines | Discovered new exit (range 4) 4091 | -10/Mines | Core integrity fell below 50% 4510 | -10/Mines | Met a Derelict who couldn't figure out how to use a Trap Extractor 5511 | -10/Mines | Entered Materials 5511 | -9/Materials | Evolved 2 slots: Propulsion x1, Utility x1 5805 | -9/Materials | Build established: Scavenger-Mutant 6155 | -9/Materials | Discovered new exit (range 11) 6395 | -9/Materials | Discovered new exit (range 10) 6748 | -9/Materials | Destroyed 8 combat bots 6968 | -9/Materials | Build established: Mutant 7035 | -9/Materials | Discovered new exit (range 3) 7229 | -9/Materials | Repaired Adv. Beam Cannon 7515 | -9/Materials | Destroyed 7 combat bots 7629 | -9/Materials | Discovered new exit (range 10) 8680 | -9/Materials | Discovered new exit (range 12) 9378 | -9/Materials | Repaired Arm. Treads 9494 | -9/Materials | Entered Mines 9495 | -9/Mines | Learned location of Storage (-7) 9775 | -9/Mines | Discovered new exit (range 4) 9777 | -9/Mines | Learned Materials terminal intel 9828 | -9/Mines | Assembled infested the area 9878 | -9/Mines | Found the Drone Emporium 9891 | -9/Mines | Found Prototype Device 10003 | -9/Mines | Core integrity fell below 50% 10529 | -9/Mines | Assisted by bots powering up and referring to "LRC-V3" 10816 | -9/Mines | Deemed a non-threat by the Exiles lab entrance 10816 | -9/Mines | Discovered new exit (range 5) 10828 | -9/Mines | Entered Exiles 10828 | -9/Exiles | Accompanied by 3 allies 10896 | -9/Exiles | Met 8R-AWN 10939 | -9/Exiles | Met EX-HEX 11009 | -9/Exiles | Met EX-BIN 11038 | -9/Exiles | Aligned with FarCom system 11041 | -9/Exiles | Given EX-Vault access code 11101 | -9/Exiles | Opened EX-Vault 11120 | -9/Exiles | Found Gui. Plasma Cannon 11172 | -9/Exiles | Warned to stay clear of 0b10 Research branches 11237 | -9/Exiles | Met EX-DEC 11397 | -9/Exiles | Visited The Gauntlet 11610 | -9/Exiles | Discovered new exit (range 14) 11644 | -9/Exiles | Left Exiles lab with Gui. Plasma Cannon 11644 | -9/Exiles | Entered Mines 11644 | -8/Mines | Accompanied by 3 allies 12195 | -8/Mines | Core integrity fell below 20% 12249 | -8/Mines | Discovered new exit (range 8) 12270 | -8/Mines | Entered Materials 12270 | -8/Materials | Evolved 2 slots: Propulsion x2 12271 | -8/Materials | Loaded intel: 12 terminal locations 13093 | -8/Materials | Build established: Scavenger-Mutant 13534 | -8/Materials | Identified exit to Factory 13868 | -8/Materials | Build established: Mutant 15367 | -8/Materials | Identified exit to Garrison 15367 | -8/Materials | Entered Garrison 15523 | -8/Garrison | Triggered checkpoint 15631 | -8/Garrison | Triggered checkpoint 15671 | -8/Garrison | Discovered exit to Factory (range 8) 15687 | -8/Garrison | Triggered checkpoint 15699 | -8/Garrison | Learned Factory security intel 15873 | -8/Garrison | Discovered exit to Factory (range 14) 15942 | -8/Garrison | Spotted B-75 Beast 15945 | -8/Garrison | Triggered checkpoint 15996 | -8/Garrison | Core integrity fell below 50% 16049 | -8/Garrison | Destroyed B-75 Beast 16066 | -8/Garrison | Lost 5 parts (3n2w) 16352 | -8/Garrison | Garrison Relay disabled 16431 | -8/Garrison | Build established: Scavenger-Mutant 16487 | -8/Garrison | Garrison Relay disabled 16789 | -8/Garrison | Discovered exit to Factory (range 15) 16851 | -8/Garrison | Triggered checkpoint 17021 | -8/Garrison | Garrison Relay disabled 17081 | -8/Garrison | Discovered exit to Factory (range 15) 17081 | -8/Garrison | Discovered exit to Factory (range 66) 17081 | -8/Garrison | Discovered exit to Factory (range 29) 17081 | -8/Garrison | Discovered new exit (range 44) 17212 | -8/Garrison | Installed Relay Interface Framework 17424 | -8/Garrison | Entered Factory 17424 | -7/Factory | Evolved 2 slots: Utility x2 17498 | -7/Factory | Repaired Imp. Medium Treads 17520 | -7/Factory | Build established: Bothacker-Mutant 18091 | -7/Factory | Core integrity fell below 50% 18120 | -7/Factory | Core integrity fell below 20% 18132 | -7/Factory | Lost 11 parts (1p5n3u2w) 18143 | -7/Factory | Destroyed by S-27 Virus with Autogun Last Messages --------------- (Destroy). 18060_ G-47 Trooper destroyed. 18062_ K-01 Serf collects debris. 18063_ HV Slug penetrates G-47 Trooper. 18066_ K-01 Serf collects debris. 18066_ Acquired 3 matter. 18072_ Imp. Medium Treads destroyed. 18074_ Acquired 1 matter. 18075_ Hyp. Gauss Cannon destroyed. 18086_ Hacking Suite destroyed. 18101_ System Shield destroyed. 18129_ S-27 Virus heat damages Backup Propulsion III, Backup Power III, VTOL Module, Backup Laser III. 18130_ S-27 Virus heat damages Backup Power III. 18134_ S-27 Virus heat spikes uncontrollably. 18134_ S-27 Virus overheating. 18136_ S-27 Virus heat damages Backup Power III. 18138_ S-27 Virus overheating. [Achievement: Achiever] Map ----- +----------------------------------------------------+ | ????????#^#??????????????????????????????????????? | | ????????# #??????????????????????????????????????? | | ????????# #????###########???????????????????????? | | ????????# #????# = *#???????????????????????? | | ????????# ###### #???????????????????????? | | ????????# + """ """ #???????????????????????? | | ??????###+## # """ """ #???????????????????????? | | ??????# # # """ """ #???????????????????????? | | ??????# + + #???????????????????????? | | ####### # ### [ ?????????????????????????? | | "T" # #%#?" ????????????????????????? | | # +=#######+######### ?????????????????? | | # #%% #???????????????? | | # #*[% #???????????????? | | # + +???????????????? | | # ! # #???????????????? | | #+####C % #????????????????? | | # C i #????????????????? | | + A #????????????????? | | """" # k #????????????????? | | """" ##### #????????????????? | | """" #???# % #????????????????? | | """" #???# * = #????????????????? | | """" #???# = ##########???????? | | """" #???# = ?????? | | """" #???# [=[ @ ??? | | ?? #???# # s= ?? | | ??#####???### ###### s #?? | | ????????????# ###### #?? | | ????????????# #????# [ #?? | | ????????????#+#????#=m= ??? | | ???????????????????#g%% u #??? | | ???????????????????# ############## #??? | | ???????????????????# ##???????????# ???? | | ???????????????????# ############## ????? | | ????????????######## +? / ?? ?????? | | ????????????#!== # # #?????# #??????? | | ????????????#!=! # # #?????# #??????? | | ????????????#!=! + + #?????# #??????? | | ????????????# # # #?????# #??????? | | ????????????# # # #######+## #??????? | | ????????????# # % ######## # #??????? | | ????????????######## ## # """ ! # #??????? | | ???????????????????#%! ## # """ # #??????? | | ????????############ #? # """ # #??????? | | ????????# #?? # !! # #??????? | | ????????# #####+## !! # #??????? | | ????????+ + "Y" ![ # #??????? | | ????????# ######/######## ## """ # #??????? | | ????????# ?????? ??????## ## # #??????? | +----------------------------------------------------+ Best States ------------- Heat Dissipation 61 Energy Generation 18 Energy Capacity 280 Matter Stores 300 Matter Capacity 300 Sight Range 16 Terrain Scan Density 10 Armor Coverage 225 Evasion (%) 50 Recoil Reduction 5 Offensive Hacking 10 Defensive Hacking 10 Relay Coupler Types 1 Relay Coupler Value 27 Trap Extractor Capacity 6 Item Schematics ----------------- Cargo Storage Unit | -10/Materials | Hacked Adv. Weight Redist. System | -9/Materials | Scanalyzed Imp. Trap Extractor | -9/Materials | Scanalyzed Robot Schematics ------------------ None Fabricated ------------ Nothing Alien Tech Used ----------------- None Achievements -------------- Achiever Hehehe Challenges ------------ None Game ------ Seed ServoPhasingTerrabomb Manual? 0 Play Time 02:25:51 Cumulative 40.4 hours Start 2024.05.07 @ 12:06:41 End 2024.05.08 @ 11:31:18 Sessions 5 Manual Loads 0 Difficulty Rogue Special Mode None Game No. 48 Rogue 43 Adventurer 5 Explorer 0 Win Type - Total 0 Types 0/0/0/0/0/0/0/0/0 Lore% 27 Gallery% 30 Achievement% 25 Wizard Run 0 Options --------- Layout 2 ASCII 0 Keyboard 0 Movement Mouse Keybinds 0 Fullscreen 2 Font 24/Smallcaps Map View 50x44 Zoom Use 0% Tactical HUD 1 Map Filters NONE Filters NONE Steam 1 RUN: 2fe39e05-1f15-4a8f-9b28-599bd1cd1b26